bitfinex/quotes_BTCUSD_20241022
["timestamp","ask_amount","ask_price","bid_price","bid_amount"]
[1729600765466,0.150166,67039.0,67038.0,0.002]
[1729600765679,0.001,67039.0,67038.0,0.002]
[1729600766521,0.150166,67039.0,67038.0,0.002]
[1729600766738,0.149166,67039.0,67038.0,0.00846127]
[1729600766986,0.299334,67039.0,67038.0,0.002]
[1729600767216,0.4485,67039.0,67038.0,0.002]
[1729600767479,0.14917,67038.0,67036.0,0.007]
[1729600768156,0.14917,67038.0,67035.0,0.15]
[1729600768362,0.149172,67037.0,67035.0,0.000825]
[1729600768827,0.299335,67039.0,67035.0,0.000825]
[1729600769033,0.149171,67037.0,67035.0,0.000825]
[1729600769239,0.298335,67039.0,67035.0,0.000825]
[1729600769445,0.149171,67037.0,67035.0,0.008825]
[1729600770083,0.149171,67037.0,67036.0,0.002]
[1729600770316,0.447493,67040.0,67035.0,0.000825]
[1729600770517,0.149173,67037.0,67036.0,0.000825]
[1729600770727,0.150173,67037.0,67036.0,0.000825]
[1729600770944,0.149173,67037.0,67036.0,0.000825]
[1729600771388,0.151173,67037.0,67036.0,0.002825]
[1729600771828,0.002,67037.0,67036.0,0.002825]
[1729600771973,0.001,67037.0,67036.0,0.002825]
[1729600772186,0.002,67037.0,67036.0,0.009825]
[1729600772395,0.002,67037.0,67036.0,0.158998]
[1729600774082,0.002,67037.0,67036.0,0.30795715]
[1729600774294,0.002,67037.0,67036.0,0.48125715]
[1729600776278,0.002,67037.0,67036.0,0.30795715]
[1729600778566,0.002,67037.0,67036.0,0.15878415]
[1729600778842,0.002,67037.0,67036.0,0.30795715]
[1729600785275,0.04622017,67037.0,67036.0,0.30795715]
[1729600785941,0.04629401,67037.0,67036.0,0.30795715]
[1729600787142,0.002,67037.0,67036.0,0.30795715]
[1729600788240,0.06844101,67037.0,67036.0,0.30795715]
[1729600789286,0.002,67037.0,67036.0,0.30795715]
[1729600790359,0.002,67037.0,67036.0,0.63575723]
[1729600792373,0.002,67037.0,67036.0,0.69733477]
[1729600792844,0.002,67037.0,67036.0,0.70233477]
[1729600794059,0.002,67037.0,67036.0,0.70433477]
[1729600794516,0.002,67037.0,67036.0,0.70233477]
[1729600795234,0.002,67037.0,67036.0,0.70433477]
[1729600795693,0.002,67037.0,67036.0,0.71281343]
[1729600796652,0.002,67037.0,67036.0,0.85493147]
[1729600796893,0.00165,67046.0,67045.0,0.325753]
[1729600797134,0.06652248,67055.0,67054.0,0.149133]
[1729600797382,0.06652248,67058.0,67057.0,0.149126]
[1729600797617,0.09069664,67061.0,67057.0,0.29808415]
[1729600797618,0.06652248,67059.0,67057.0,0.29808415]
[1729600797869,0.08869664,67059.0,67058.0,0.14895915]
[1729600798168,0.06650856,67059.0,67058.0,0.3826449]
[1729600798389,0.1108708,67063.0,67062.0,0.149115]
[1729600798390,0.06650856,67063.0,67062.0,0.149115]
[1729600798644,0.09069664,67065.0,67062.0,0.149115]
[1729600798645,0.06650856,67065.0,67063.0,0.0774]
[1729600798891,0.06650856,67065.0,67064.0,0.29807015]
[1729600799176,0.06650856,67067.0,67066.0,0.149106]
[1729600799455,0.00165,67073.0,67071.0,0.149095]
[1729600799911,0.00165,67073.0,67071.0,0.15727827]
[1729600800367,0.00165,67073.0,67071.0,0.00818327]
[1729600800599,0.00165,67073.0,67071.0,0.15727827]
[1729600800834,0.00165,67073.0,67071.0,0.149095]
[1729600801756,0.00265,67072.0,67071.0,0.157095]
[1729600802531,0.00365,67072.0,67071.0,0.164095]
[1729600802956,0.00365,67072.0,67071.0,0.17226647]
[1729600808828,4.7801982,67072.0,67071.0,0.02317147]
[1729600809268,4.7801982,67072.0,67071.0,0.015]
[1729600809517,4.8081982,67072.0,67061.0,0.2237587]
[1729600809824,0.151115,67062.0,67061.0,0.2237587]
[1729600810071,4.731115,67062.0,67061.0,0.2237587]
[1729600810517,0.151117,67061.0,67060.0,0.02333976]
[1729600811468,0.14912,67060.0,67053.0,0.5220267]
[1729600811691,0.002,67061.0,67053.0,0.5220267]
[1729600811945,0.0300232,67060.0,67056.0,0.149126]
[1729600812220,0.0300232,67060.0,67036.0,0.000825]
[1729600812221,0.29832,67042.0,67036.0,0.000825]
[1729600812453,4.58,67041.0,67036.0,0.000825]
[1729600812946,0.149171,67037.0,67036.0,0.000825]
[1729600813161,0.002,67041.0,67036.0,0.000825]
[1729600813384,4.582,67040.0,67036.0,0.000825]
[1729600813627,0.149171,67037.0,67036.0,0.000825]
[1729600813851,4.731171,67037.0,67036.0,0.000825]
[1729600814854,4.854171,67037.0,67036.0,0.000825]
[1729600815089,4.859171,67037.0,67036.0,0.000825]
[1729600815531,0.45014335,67036.0,67035.0,3.567e-05]
[1729600815740,5.35536274,67036.0,67035.0,3.567e-05]
[1729600815950,5.26715059,67036.0,67035.0,3.567e-05]
[1729600816195,5.35536098,67036.0,67035.0,3.567e-05]
[1729600816432,5.35533619,67036.0,67035.0,3.567e-05]
[1729600817538,5.36533619,67036.0,67035.0,3.567e-05]
[1729600817761,5.36733619,67036.0,67035.0,0.00103567]
[1729600817973,5.38033619,67036.0,67035.0,0.00103567]
[1729600818190,5.39133619,67036.0,67035.0,0.00103567]
[1729600818377,5.39333619,67036.0,67035.0,0.00103567]
[1729600818606,5.39317263,67036.0,67035.0,0.00103567]
[1729600818819,5.39117263,67036.0,67035.0,0.00103567]
[1729600819463,5.30302447,67036.0,67035.0,0.00103567]
[1729600819676,5.39117263,67036.0,67035.0,0.00103567]
[1729600820344,5.30302447,67036.0,67035.0,0.00103567]
[1729600820559,0.72302447,67036.0,67035.0,0.00103567]
[1729600820806,5.30302447,67036.0,67035.0,0.00103567]
[1729600821266,5.28928829,67036.0,67035.0,0.00103567]
[1729600822135,5.35533764,67036.0,67035.0,0.00103567]
[1729600822348,5.06614335,67036.0,67035.0,0.00103567]
[1729600823208,5.06614335,67036.0,67030.0,0.000826]
[1729600823209,0.1979,67032.0,67030.0,0.000826]
[1729600823438,0.017,67023.0,67022.0,0.02419702]
[1729600823662,0.017,67023.0,67022.0,0.000844]
[1729600823663,5.39042185,67023.0,67022.0,0.000844]
[1729600823917,5.64280733,67023.0,67022.0,0.000844]
[1729600824163,0.166206,67021.0,67020.0,0.0001069]
[1729600824384,5.18202068,67021.0,67020.0,0.0001069]
[1729600825335,0.279231,67010.0,67008.0,0.0075]
[1729600825550,4.869231,67010.0,67008.0,0.0075]
[1729600826638,4.871231,67010.0,67008.0,0.0075]
[1729600826848,4.869231,67010.0,67009.0,0.99529732]
[1729600827058,5.06205594,67010.0,67009.0,0.99529732]
[1729600827738,5.08405594,67010.0,67009.0,0.99529732]
[1729600827953,5.08451196,67010.0,67009.0,0.99529732]
[1729600828162,5.04064617,67010.0,67009.0,0.99529732]
[1729600828383,4.78168702,67010.0,67009.0,0.99529732]
[1729600828634,4.77668702,67010.0,67009.0,0.99529732]
[1729600828853,2.55468702,67010.0,67009.0,0.99529732]
[1729600829303,0.23345602,67010.0,67009.0,0.99529732]
[1729600829510,0.38468702,67010.0,67009.0,0.99529732]
[1729600829722,0.23545602,67010.0,67009.0,0.99529732]
[1729600830163,0.23545602,67010.0,67009.0,0.99612332]
[1729600830381,0.38468702,67010.0,67009.0,0.99612332]
[1729600830838,0.48284632,67010.0,67009.0,0.99612332]
[1729600831892,0.48284632,67010.0,67009.0,1.00453261]
[1729600832333,0.38468702,67010.0,67009.0,1.00453261]
[1729600833060,0.83261652,67010.0,67009.0,1.00453261]
[1729600833269,0.83261652,67010.0,67009.0,1.00879614]
[1729600833270,0.84261652,67010.0,67009.0,1.00879614]
[1729600833933,0.83161652,67010.0,67009.0,1.00879614]
[1729600835022,0.82061652,67010.0,67009.0,1.00879614]
[1729600835250,1.01920994,67010.0,67009.0,1.00879614]
[1729600835466,1.15454602,67010.0,67009.0,1.00879614]
[1729600835683,0.96957567,67010.0,67009.0,1.00879614]
[1729600835907,1.01341035,67010.0,67009.0,1.00879614]
[1729600836126,1.03320994,67010.0,67009.0,1.00879614]
[1729600836368,5.56118029,67010.0,67009.0,0.84549614]
[1729600836598,5.39020994,67010.0,67009.0,0.84549614]
[1729600836817,5.40420994,67010.0,67009.0,0.83282332]
[1729600837032,5.57518029,67010.0,67009.0,0.83282332]
[1729600837251,5.56118029,67010.0,67009.0,0.83282332]
[1729600837461,5.57518029,67010.0,67009.0,0.16841326]
[1729600837670,5.58918029,67010.0,67009.0,0.16841326]
[1729600837891,5.63293131,67010.0,67009.0,0.16841326]
[1729600838132,5.60493131,67010.0,67009.0,0.16841326]
[1729600838356,0.289244,67004.0,66998.0,0.2237587]
[1729600838580,0.6041735,67004.0,66998.0,0.2237587]
[1729600838798,5.1891735,67004.0,66998.0,0.2237587]
[1729600839013,5.18962952,67004.0,66998.0,0.2237587]
[1729600839660,5.20362952,67004.0,66998.0,0.2237587]
[1729600839865,5.23394952,67004.0,66998.0,0.2237587]
[1729600840996,0.002,66999.0,66998.0,0.14888691]
[1729600841211,0.002,66999.0,66993.0,0.05999999]
[1729600841212,0.151264,66995.0,66994.0,0.17097035]
[1729600841436,0.274267,66994.0,66993.0,0.05999999]
[1729600841651,4.854267,66994.0,66993.0,0.05999999]
[1729600841886,5.00822615,66994.0,66993.0,0.05999999]
[1729600842111,4.854267,66994.0,66993.0,0.05999999]
[1729600842351,4.85472302,66994.0,66993.0,0.05999999]
[1729600842569,4.88504302,66994.0,66993.0,0.05999999]
[1729600843010,4.89404302,66994.0,66993.0,0.05999999]
[1729600843263,4.86372302,66994.0,66993.0,0.05999999]
[1729600844159,4.87272302,66994.0,66993.0,0.05999999]
[1729600846152,4.84972302,66994.0,66993.0,0.05999999]
[1729600848425,4.84972302,66994.0,66993.0,0.29036899]
[1729600848426,4.60045602,66994.0,66993.0,0.29036899]
[1729600848645,4.59845602,66994.0,66993.0,0.14109999]
[1729600849274,4.74972302,66994.0,66993.0,0.14109999]
[1729600849488,4.60045602,66994.0,66993.0,0.14109999]
[1729600849918,4.74972302,66994.0,66993.0,0.14109999]
[1729600850381,4.59845602,66994.0,66993.0,0.14109999]
[1729600850593,4.74972302,66994.0,66993.0,0.14109999]
[1729600851863,4.60045602,66994.0,66993.0,0.14109999]
[1729600852321,4.74972302,66994.0,66993.0,0.14109999]
[1729600852764,4.59845602,66994.0,66993.0,0.14109999]
[1729600853004,4.15072302,66994.0,66993.0,0.14109999]
[1729600853230,4.15272302,66994.0,66993.0,0.14109999]
[1729600853450,4.15072302,66994.0,66993.0,0.14109999]
[1729600853930,0.29245602,66994.0,66993.0,0.11643088]
[1729600854184,0.29245602,66994.0,66993.0,0.21379199]
[1729600854185,0.44172302,66994.0,66993.0,0.21379199]
[1729600854430,0.44172302,66994.0,66993.0,0.22540895]
[1729600855410,3.67872302,66994.0,66993.0,0.22540895]
[1729600855695,3.34672302,66994.0,66993.0,0.22540895]
[1729600855944,3.34672302,66994.0,66993.0,0.21461699]
[1729600856212,3.49568217,66994.0,66993.0,0.21461699]
[1729600856427,3.49568217,66994.0,66993.0,0.11501699]
[1729600856428,3.34672302,66994.0,66993.0,0.11501699]
[1729600856648,0.149278,66989.0,66988.0,0.02336617]
[1729600856894,0.149278,66989.0,66978.0,0.000844]
[1729600856895,0.00045602,66988.0,66978.0,0.000844]
[1729600857113,0.00045602,66988.0,66972.0,0.000844]
[1729600857114,0.266313,66973.0,66972.0,0.000844]
[1729600857343,0.53061017,66973.0,66972.0,0.000844]
[1729600857572,5.08677655,66973.0,66972.0,0.01180118]
[1729600857794,5.16022672,66973.0,66972.0,0.01134516]
[1729600858021,5.16022672,66973.0,66972.0,0.00038798]
[1729600858022,5.22575241,66973.0,66972.0,0.00038798]
[1729600858245,5.31118555,66973.0,66972.0,0.00038798]
[1729600858462,5.31118555,66973.0,66970.0,0.000844]
[1729600858463,0.189318,66971.0,66970.0,0.000844]
[1729600858673,5.48944512,66971.0,66970.0,0.000844]
[1729600858888,5.48944512,66971.0,66968.0,0.00017404]
[1729600858889,0.166322,66969.0,66968.0,0.00017404]
[1729600859109,5.41521697,66969.0,66968.0,0.00017404]
[1729600859381,5.41721697,66969.0,66968.0,0.00017404]
[1729600859611,5.41521697,66969.0,66968.0,0.00017404]
[1729600859837,5.53578935,66969.0,66968.0,0.00017404]
[1729600860071,5.42575101,66969.0,66968.0,0.00017404]
[1729600860287,5.37611674,66969.0,66968.0,0.00017404]
[1729600860503,5.35576712,66969.0,66968.0,0.00017404]
[1729600860729,5.18380797,66969.0,66968.0,0.00017404]
[1729600860955,5.16980797,66969.0,66968.0,0.00017404]
[1729600861175,5.2888892,66969.0,66968.0,0.00017404]
[1729600861410,5.50151191,66969.0,66968.0,0.00017404]
[1729600861622,5.24244224,66969.0,66968.0,0.00017404]
[1729600862049,5.23344224,66969.0,66968.0,0.00017404]
[1729600862285,5.19280797,66969.0,66968.0,0.00017404]
[1729600862495,5.28083242,66969.0,66968.0,0.00017404]
[1729600862934,5.02183762,66969.0,66968.0,0.00017404]
[1729600863196,4.759322,66969.0,66968.0,0.00017404]
[1729600864108,4.731322,66969.0,66968.0,0.00017404]
[1729600864547,4.705,66969.0,66968.0,0.00017404]
[1729600864764,0.013,66969.0,66968.0,0.24829904]
[1729600865201,0.025,66969.0,66968.0,0.25932687]
[1729600865423,0.025,66969.0,66968.0,0.41052607]
[1729600865647,0.025,66969.0,66968.0,0.41552607]
[1729600865874,0.298566,66987.0,66968.0,0.41552607]
[1729600865875,0.151281,66988.0,66981.0,0.243096]
[1729600866100,0.002,66988.0,66981.0,0.5630255]
[1729600866323,0.002,66988.0,66981.0,0.57397832]
[1729600866569,0.149283,66987.0,66983.0,0.149289]
[1729600866795,0.2237587,66986.0,66982.0,0.298585]
[1729600867020,0.002,66990.0,66984.0,0.0109186]
[1729600867231,0.04401382,66994.0,66981.0,0.24275915]
[1729600867232,0.002,66988.0,66981.0,0.24275915]
[1729600867446,0.149284,66986.0,66985.0,0.01091052]
[1729600867692,4.878571,66986.0,66981.0,0.24275915]
[1729600867906,0.305566,66987.0,66981.0,0.39205415]
[1729600868121,0.149289,66984.0,66981.0,0.24275915]
[1729600868324,4.584,66987.0,66981.0,0.24275915]
[1729600868325,0.149289,66985.0,66982.0,0.01093475]
[1729600868544,0.298569,66986.0,66981.0,0.24275915]
[1729600868766,0.149289,66984.0,66983.0,0.01092668]
[1729600868982,0.149289,66984.0,66982.0,0.01093475]
[1729600869192,0.149285,66986.0,66981.0,0.39205415]
[1729600869406,4.735285,66986.0,66983.0,0.01092668]
[1729600869626,0.006,66986.0,66982.0,0.01093475]
[1729600869841,0.006,66986.0,66982.0,0.149292]
[1729600869842,0.155286,66986.0,66982.0,0.149292]
[1729600870054,0.299565,66987.0,66983.0,0.01092668]
[1729600870269,4.729285,66986.0,66983.0,0.01092668]
[1729600870507,0.149288,66985.0,66981.0,0.24275915]
[1729600870752,0.141788,66985.0,66981.0,0.39205415]
[1729600871042,4.58,66984.0,66981.0,0.39205415]
[1729600871267,4.58,66984.0,66983.0,0.149291]
[1729600871488,4.58,66986.0,66983.0,0.149291]
[1729600871704,0.149287,66985.0,66981.0,0.39205315]
[1729600871931,4.58,66984.0,66981.0,0.39205315]
[1729600872166,4.58,66984.0,66981.0,0.24275915]
[1729600872385,4.58,66984.0,66981.0,0.54134715]
[1729600872605,0.002,66985.0,66982.0,0.149292]
[1729600872850,4.58,66984.0,66982.0,0.149292]
[1729600873318,4.729288,66985.0,66981.0,0.24275915]
[1729600873530,0.149293,66982.0,66981.0,0.0938]
[1729600873747,4.729293,66982.0,66981.0,0.0938]
[1729600874184,4.58,66982.0,66981.0,0.0938]
[1729600874399,0.195,66982.0,66981.0,0.243096]
[1729600874626,0.124,66982.0,66981.0,0.243096]
[1729600874842,0.003,66984.0,66981.0,0.243096]
[1729600874843,0.003,66984.0,66983.0,0.149291]
[1729600875273,0.003,66984.0,66983.0,0.16019106]
[1729600875485,0.002,66987.0,66983.0,0.01090006]
[1729600875701,0.28753141,66988.0,66983.0,0.01090006]
[1729600875927,0.149288,66985.0,66984.0,0.01089198]
[1729600876357,0.28753141,66988.0,66981.0,0.40305415]
[1729600876561,0.150289,66984.0,66983.0,0.002]
[1729600876751,4.730289,66984.0,66983.0,0.002]
[1729600876984,4.729289,66984.0,66981.0,0.24275915]
[1729600877212,0.150289,66984.0,66983.0,0.008]
[1729600877438,0.001,66984.0,66983.0,0.008]
[1729600877648,0.150289,66984.0,66983.0,0.008]
[1729600877857,0.149289,66984.0,66981.0,0.24275915]
[1729600878067,4.58,66983.0,66981.0,0.24275915]
[1729600878284,4.58,66983.0,66981.0,0.25275915]
[1729600878566,4.58,66983.0,66981.0,0.24275915]
[1729600878998,4.58,66983.0,66981.0,0.39405515]
[1729600879212,4.58,66983.0,66981.0,0.24475915]
[1729600879863,4.58,66983.0,66982.0,0.149293]
[1729600880076,4.148,66983.0,66982.0,0.149293]
[1729600880291,0.409,66983.0,66982.0,0.149293]
[1729600880539,0.001,66983.0,66982.0,0.38105215]
[1729600880940,0.002,66983.0,66982.0,0.38805215]
[1729600881302,0.002,66983.0,66982.0,0.48375215]
[1729600881515,0.002,66983.0,66982.0,0.49275215]
[1729600881919,0.003,66983.0,66982.0,0.49475215]
[1729600882323,0.1179,67001.0,66995.0,0.0959]
[1729600882533,0.0179,67001.0,66996.0,0.14895915]
[1729600882762,0.0179,67001.0,66997.0,0.22656]
[1729600883523,0.0179,67001.0,66997.0,0.23654495]
[1729600883741,0.00765,66998.0,66997.0,0.23454495]
[1729600883947,0.00765,66998.0,66997.0,0.44769023]
[1729600884170,0.00765,66998.0,66997.0,0.44470528]
[1729600884775,0.00765,66998.0,66997.0,0.38275817]
[1729600885245,0.01265,66998.0,66997.0,0.38275817]
[1729600885475,0.00165,66998.0,66997.0,0.38275817]
[1729600885892,0.00265,66998.0,66997.0,0.39775817]
[1729600886367,0.00165,66998.0,66997.0,0.38675817]
[1729600886783,0.00265,66998.0,66997.0,0.39875817]
[1729600887437,0.00265,66998.0,66997.0,0.39375817]
[1729600887830,0.00265,66998.0,66997.0,0.39875817]
[1729600890615,0.30464177,67016.0,66997.0,0.39875817]
[1729600890616,0.30464177,67016.0,66998.0,0.0971]
[1729600890827,0.0769,67034.0,67014.0,0.241322]
[1729600890828,0.2237587,67015.0,67014.0,0.241322]
[1729600891038,0.2237587,67015.0,67014.0,0.46528115]
[1729600891313,0.0122,67032.0,67014.0,0.61450015]
[1729600891530,0.2237587,67030.0,67015.0,0.21090917]
[1729600891741,4.58,67029.0,67015.0,0.21090917]
[1729600892154,0.001,67016.0,67015.0,0.36012917]
[1729600892369,0.001,67016.0,67015.0,0.14895915]
[1729600892589,0.149205,67022.0,67016.0,0.149217]
[1729600892802,0.298373,67030.0,67015.0,0.14895915]
[1729600892803,4.58,67021.0,67018.0,0.149213]
[1729600893014,4.58,67021.0,67015.0,0.14895915]
[1729600893015,4.58,67023.0,67015.0,0.15495915]
[1729600893220,0.298378,67029.0,67015.0,0.16395915]
[1729600893421,0.149202,67023.0,67016.0,0.149217]
[1729600893629,4.58,67022.0,67015.0,0.15795915]
[1729600893877,0.2984,67025.0,67015.0,0.15795915]
[1729600893878,0.149203,67023.0,67015.0,0.15795915]
[1729600894106,4.58,67022.0,67016.0,0.149218]
[1729600894319,4.58,67022.0,67015.0,0.009]
[1729600894320,0.149218,67016.0,67015.0,0.009]
[1729600894732,4.58,67016.0,67010.0,0.149231]
[1729600894937,4.58,67016.0,67011.0,0.149228]
[1729600894938,0.149219,67016.0,67011.0,0.149228]
[1729600895142,4.58,67015.0,67011.0,0.149228]
[1729600895368,4.58,67015.0,67010.0,0.02335586]
[1729600895582,0.149229,67011.0,67010.0,0.02335586]
[1729600895798,4.729229,67011.0,67010.0,0.02335586]
[1729600896444,4.98930195,67011.0,67010.0,0.02335586]
[1729600897815,4.98930195,67011.0,66999.0,0.2237587]
[1729600897816,0.149253,67000.0,66999.0,0.2237587]
[1729600898047,0.14925,67002.0,66999.0,0.2237587]
[1729600898266,4.58,67001.0,66999.0,0.3730137]
[1729600898465,0.1,67008.0,66996.0,0.298521]
[1729600898674,0.26007295,67009.0,67000.0,0.149253]
[1729600898675,0.149244,67004.0,67000.0,0.149253]
[1729600898883,4.58,67003.0,66998.0,0.149257]
[1729600899118,0.149251,67002.0,66999.0,0.008]
[1729600899318,0.149251,67001.0,66999.0,0.005]
[1729600899527,4.878494,67003.0,66995.0,0.298528]
[1729600899737,4.58,67002.0,67001.0,0.149251]
[1729600899944,4.58,67002.0,66998.0,0.298516]
[1729600899945,4.729249,67002.0,66998.0,0.298516]
[1729600900154,4.58,67001.0,66999.0,0.149255]
[1729600900386,0.149247,67003.0,66998.0,0.298516]
[1729600900387,4.58,67002.0,66998.0,0.298516]
[1729600900593,0.149247,67003.0,66999.0,0.149255]
[1729600900793,4.58,67002.0,67000.0,0.149252]
[1729600901003,4.58,67003.0,67000.0,0.149252]
[1729600901214,4.58,67003.0,66999.0,0.2237587]
[1729600901486,1.326,67002.0,67001.0,0.149251]
[1729600901725,3.055,67002.0,67001.0,0.149251]
[1729600901942,0.149247,67003.0,67000.0,0.002]
[1729600902164,4.58,67002.0,67000.0,0.149253]
[1729600903032,4.58,67002.0,66998.0,0.298513]
[1729600903033,0.001,67002.0,66999.0,0.149255]
[1729600903243,4.58,67001.0,66999.0,0.149255]
[1729600904413,4.58,67001.0,66997.0,0.000825]
[1729600904630,4.58,67001.0,67000.0,0.006]
[1729600904873,4.58,67001.0,67000.0,0.008]
[1729600905079,4.58,67001.0,67000.0,0.002]
[1729600905512,4.730251,67001.0,67000.0,0.002]
[1729600905729,4.581,67001.0,66999.0,0.007]
[1729600905937,4.729253,67000.0,66999.0,0.007]
[1729600906154,0.149258,66998.0,66997.0,0.000825]
[1729600906377,4.58,66998.0,66997.0,0.000825]
[1729600906612,4.729256,66999.0,66997.0,0.000825]
[1729600906828,4.58,66998.0,66997.0,0.000825]
[1729600907046,4.87821715,66998.0,66997.0,0.000825]
[1729600907468,4.729258,66998.0,66997.0,0.000825]
[1729600908143,4.729258,66998.0,66997.0,0.011825]
[1729600908358,4.581,66998.0,66997.0,0.020825]
[1729600908598,4.581,66998.0,66997.0,0.009825]
[1729600908821,4.581,66998.0,66997.0,0.002825]
[1729600908822,4.58,66998.0,66997.0,0.002825]
[1729600909037,4.729253,67000.0,66997.0,0.002825]
[1729600909287,4.58,66999.0,66997.0,0.002825]
[1729600909719,4.729254,67000.0,66997.0,0.002825]
[1729600909960,4.729255,66999.0,66997.0,0.002825]
[1729600910163,4.58,66998.0,66997.0,0.002825]
[1729600910385,4.58,66998.0,66997.0,0.000825]
[1729600910812,4.58,66998.0,66997.0,0.006825]
[1729600911046,4.58,66998.0,66997.0,0.004825]
[1729600911270,4.729258,66998.0,66997.0,0.010825]
[1729600911496,4.58,66998.0,66997.0,0.004825]
[1729600911744,4.729256,66999.0,66997.0,0.004825]
[1729600911989,4.58,66998.0,66997.0,0.006825]
[1729600912219,4.58,66998.0,66997.0,0.010825]
[1729600912458,4.58,66998.0,66997.0,0.160085]
[1729600912678,4.58,66999.0,66997.0,0.010825]
[1729600913158,4.58,66999.0,66998.0,0.149258]
[1729600913399,4.58,66999.0,66997.0,0.004825]
[1729600913400,0.149257,66999.0,66997.0,0.004825]
[1729600913634,4.58,66998.0,66997.0,0.000825]
[1729600913866,4.58,66998.0,66997.0,0.006825]
[1729600914091,4.58,66998.0,66997.0,0.004825]
[1729600914560,4.58,66998.0,66997.0,0.000825]
[1729600914784,4.58,66998.0,66997.0,0.004825]
[1729600915010,4.58,66998.0,66997.0,0.010825]
[1729600915481,0.149257,66999.0,66997.0,0.010825]
[1729600915709,4.58,66998.0,66997.0,0.010825]
[1729600915965,4.58,66998.0,66997.0,0.160085]
[1729600916190,4.729257,66999.0,66997.0,0.010825]
[1729600916413,4.58,66998.0,66997.0,0.010825]
[1729600916958,4.729258,66998.0,66997.0,0.006825]
[1729600917212,4.729258,66998.0,66997.0,0.004825]
[1729600917670,4.58,66998.0,66997.0,0.006825]
[1729600917893,0.149256,66999.0,66997.0,0.010825]
[1729600918124,4.58,66998.0,66997.0,0.010825]
[1729600918380,4.729255,67000.0,66997.0,0.010825]
[1729600918610,0.00609705,67001.0,66997.0,0.010825]
[1729600918611,4.58,66999.0,66997.0,0.004825]
[1729600918837,4.58,67000.0,66997.0,0.004825]
[1729600919062,0.298509,67000.0,66997.0,0.004825]
[1729600919317,4.58,66999.0,66997.0,0.004825]
[1729600919550,0.149258,66998.0,66997.0,0.004825]
[1729600919815,0.149258,66998.0,66997.0,0.006825]
[1729600920051,4.729258,66998.0,66997.0,0.000825]
[1729600920289,4.58,66999.0,66997.0,0.004825]
[1729600920506,4.58,66998.0,66997.0,0.010825]
[1729600920750,0.149258,66998.0,66997.0,0.000825]
[1729600920982,4.729258,66998.0,66997.0,0.010825]
[1729600921694,4.729258,66998.0,66997.0,0.016825]
[1729600922951,4.729258,66998.0,66997.0,0.004825]
[1729600923417,4.729258,66998.0,66997.0,0.010825]
[1729600927019,4.58,66998.0,66997.0,0.010825]
[1729600927239,4.729258,66998.0,66997.0,0.010825]
[1729600927485,0.149258,66998.0,66997.0,0.010825]
[1729600927932,4.729258,66998.0,66997.0,0.010825]
[1729600932084,4.58,66998.0,66997.0,0.010825]
[1729600932309,4.729258,66998.0,66997.0,0.010825]
[1729600933586,5.14946404,66998.0,66997.0,0.010825]
[1729600933812,0.44851789,66992.0,66991.0,0.02336247]
[1729600934034,5.35450182,66992.0,66991.0,0.02336247]
[1729600934247,5.57789784,66992.0,66991.0,0.02336247]
[1729600934465,5.88703576,66992.0,66991.0,0.02336247]
[1729600934686,5.75443974,66992.0,66991.0,0.02336247]
[1729600934906,0.249289,66984.0,66983.0,0.2237587]
[1729600935123,5.28799998,66984.0,66983.0,0.2237587]
[1729600935341,0.249293,66982.0,66975.0,0.2237587]
[1729600935563,4.89552693,66982.0,66979.0,0.02336958]
[1729600935791,5.04448608,66982.0,66979.0,0.02336958]
[1729600936256,4.97825215,66982.0,66979.0,0.02336958]
[1729600936692,5.03239286,66982.0,66981.0,0.001825]
[1729600937136,4.99725215,66982.0,66981.0,0.002825]
[1729600937347,5.0413773,66982.0,66981.0,0.002825]
[1729600937799,4.99725215,66982.0,66981.0,0.002825]
[1729600938014,5.17398075,66982.0,66981.0,0.002825]
[1729600938222,5.24848884,66982.0,66981.0,0.002825]
[1729600938440,5.04137457,66982.0,66981.0,0.002825]
[1729600938656,5.06343326,66982.0,66981.0,0.002825]
[1729600939111,5.04138577,66982.0,66981.0,0.002825]
[1729600939329,5.4116393,66982.0,66981.0,0.002825]
[1729600939547,5.1742113,66982.0,66981.0,0.002825]
[1729600939809,5.43922632,66982.0,66981.0,0.002825]
[1729600940034,5.46135853,66982.0,66981.0,0.002825]
[1729600940262,5.46135377,66982.0,66981.0,0.002825]
[1729600940766,5.47135377,66982.0,66981.0,0.002825]
[1729600941218,5.62881289,66982.0,66981.0,0.002825]
[1729600941440,5.64862805,66982.0,66981.0,0.002825]
[1729600941648,5.64864985,66982.0,66981.0,0.002825]
[1729600942058,5.62486756,66982.0,66981.0,0.002825]
[1729600942275,5.63486756,66982.0,66981.0,0.002825]
[1729600942538,5.52456921,66982.0,66981.0,0.002825]
[1729600942765,5.63486756,66982.0,66981.0,0.002825]
[1729600943425,5.52456921,66982.0,66981.0,0.002825]
[1729600943895,0.149313,66973.0,66972.0,0.02337179]
[1729600944142,5.00055989,66973.0,66972.0,0.02337179]
[1729600944346,5.08140271,66973.0,66972.0,0.01158819]
[1729600944558,0.14932,66970.0,66969.0,0.2237587]
[1729600944766,4.72932,66970.0,66969.0,0.2237587]
[1729600944978,4.72932,66970.0,66968.0,0.00017404]
[1729600944979,0.149322,66969.0,66968.0,0.00017404]
[1729600945202,4.729322,66969.0,66968.0,0.00017404]
[1729600945444,4.729322,66969.0,66968.0,0.07847404]
[1729600945445,2.668,66969.0,66968.0,0.07847404]
[1729600945689,1.924,66969.0,66968.0,0.10184672]
[1729600945928,4.535,66971.0,66968.0,0.10184672]
[1729600946156,0.149322,66969.0,66968.0,0.10484672]
[1729600946377,2.688322,66969.0,66968.0,0.10484672]
[1729600946603,2.397322,66969.0,66968.0,0.10484672]
[1729600946829,2.397322,66969.0,66968.0,0.10184672]
[1729600947291,4.729322,66969.0,66968.0,0.10584672]
[1729600948498,4.729322,66969.0,66968.0,0.10784672]
[1729600948945,4.729322,66969.0,66968.0,0.10584672]